fUST/lending_fUST_20251126
["ID","MTS","AMOUNT","RATE_DAILY","PERIOD"]
[394910628,1764109851990,-500.0,0.00012602,2]
[394910629,1764109851999,-5238.0,0.00012602,2]
[394910630,1764109852008,-500.0,0.00012602,2]
[394910631,1764109852018,-500.0,0.00012602,2]
[394910632,1764109852027,-1090.9,0.00012602,2]
[394910633,1764109852036,-500.0,0.00012602,2]
[394910634,1764109852046,-1767.59,0.00012602,2]
[394910635,1764109852055,-500.0,0.00012602,2]
[394910636,1764109852064,-916.42,0.00012602,2]
[394910637,1764109852074,-500.0,0.00012602,2]
[394910638,1764109852083,-842.34,0.00012602,2]
[394910639,1764109852092,-454.83625114,0.00012602,2]
[394910640,1764109852101,-500.0,0.00012602,2]
[394910641,1764109852110,-500.0,0.00012602,2]
[394910642,1764109852121,-500.0,0.00012602,2]
[394910643,1764109852130,-500.0,0.00012602,2]
[394910644,1764109852140,-500.0,0.00012602,2]
[394910645,1764109852149,-500.0,0.00012602,2]
[394910646,1764109852161,-743.55,0.00012602,2]
[394910647,1764109852170,-500.0,0.00012602,2]
[394910648,1764109852179,-500.0,0.00012602,2]
[394910649,1764109852188,-1018.73,0.00012602,2]
[394910650,1764109852198,-500.0,0.00012602,2]
[394910651,1764109852207,-500.0,0.00012602,2]
[394910652,1764109852216,-500.0,0.00012602,2]
[394910653,1764109852225,-500.0,0.00012602,2]
[394910654,1764109852235,-1030.87,0.00012602,2]
[394910655,1764109852244,-500.0,0.00012602,2]
[394910656,1764109852254,-1098.61,0.00012602,2]
[394910657,1764109852264,-185.19456563,0.00012602,2]
[394910658,1764109852273,-500.0,0.00012602,2]
[394910659,1764109852282,-3749.21,0.00012602,2]
[394910660,1764109852291,-1649.84,0.00012602,2]
[394910661,1764109852300,-1177.92,0.00012602,2]
[394910662,1764109852310,-500.0,0.00012602,2]
[394910663,1764109852320,-796.05,0.00012602,2]
[394910664,1764109852330,-500.0,0.00012602,2]
[394910665,1764109852340,-1346.94,0.00012602,2]
[394910666,1764109852350,-1858.8,0.00012602,2]
[394910667,1764109852359,-1374.45,0.00012602,2]
[394910668,1764109852369,-500.0,0.00012602,2]
[394910669,1764109852379,-952.55,0.00012602,2]
[394910670,1764109852389,-1812.18,0.00012602,2]
[394910671,1764109852398,-568.71,0.00012602,2]
[394910672,1764109852408,-580.64,0.00012602,2]
[394910673,1764109852418,-1371.26,0.00012602,2]
[394910674,1764109852428,-500.0,0.00012602,2]
[394910675,1764109852437,-386.44438671,0.00012602,2]
[394910676,1764109852448,-500.0,0.00012602,2]
[394910677,1764109852457,-500.0,0.00012602,2]
[394910678,1764109852467,-1012.25,0.00012602,2]
[394910679,1764109852476,-699.32,0.00012602,2]
[394910680,1764109852486,-500.0,0.00012602,2]
[394910681,1764109852495,-1155.07,0.00012602,2]
[394910682,1764109852504,-500.0,0.00012602,2]
[394910683,1764109852513,-2952.65,0.00012602,2]
[394910684,1764109852523,-929.42,0.00012602,2]
[394910685,1764109852533,-2211.59,0.00012602,2]
[394910686,1764109852543,-500.0,0.00012602,2]
[394910687,1764109852552,-3950.53,0.00012602,2]
[394910688,1764109852561,-500.0,0.00012602,2]
[394910689,1764109852571,-500.0,0.00012602,2]
[394910690,1764109852581,-1971.86,0.00012602,2]
[394910691,1764109852591,-500.0,0.00012602,2]
[394910692,1764109852600,-500.0,0.00012602,2]
[394910693,1764109852610,-500.0,0.00012602,2]
[394910694,1764109852619,-878.0,0.00012602,2]
[394910695,1764109852628,-500.0,0.00012602,2]
[394910696,1764109852638,-500.0,0.00012602,2]
[394910697,1764109852647,-500.0,0.00012602,2]
[394910698,1764109852657,-1042.61,0.00012602,2]
[394910699,1764109852667,-1382.12,0.00012602,2]
[394910700,1764109852823,-500.0,0.00012602,2]
[394910701,1764109852833,-1929.99,0.00012602,2]
[394910702,1764109852845,-637.07,0.00012602,2]
[394910703,1764109852855,-536.6,0.00012602,2]
[394910704,1764109852867,-500.0,0.00012602,2]
[394910705,1764109852877,-740.98,0.00012602,2]
[394910706,1764109852888,-2117.5,0.00012602,2]
[394910707,1764109852899,-170.20814981,0.00012602,2]
[394910708,1764109852910,-500.0,0.00012602,2]
[394910709,1764109852920,-963.61,0.00012602,2]
[394910710,1764109852932,-681.26,0.00012602,2]
[394910711,1764109852942,-3600.8,0.00012602,2]
[394910712,1764109852952,-690.41,0.00012602,2]
[394910713,1764109852962,-500.0,0.00012602,2]
[394910714,1764109852973,-1778.0,0.00012602,2]
[394910715,1764109852982,-1865.67,0.00012602,2]
[394910716,1764109852991,-791.96,0.00012602,2]
[394910717,1764109853000,-8868.64,0.00012602,2]
[394910718,1764109853010,-500.0,0.00012602,2]
[394910719,1764109853019,-500.0,0.00012602,2]
[394910720,1764109853029,-832.68,0.00012602,2]
[394910721,1764109853038,-500.0,0.00012602,2]
[394910722,1764109853048,-500.0,0.00012602,2]
[394910723,1764109853057,-502.86635507,0.00012602,2]
[394910724,1764109853066,-1913.75,0.00012602,2]
[394910725,1764109853077,-917.74,0.00012602,2]
[394910726,1764109853086,-1523.27,0.00012602,2]
[394910727,1764109853096,-1145.74,0.00012602,2]
[394910728,1764109853106,-316.27088549,0.00012602,2]
[394910729,1764109853115,-500.0,0.00012602,2]
[394910730,1764109853125,-500.0,0.00012602,2]
[394910731,1764109853135,-1387.05,0.00012602,2]
[394910732,1764109853144,-500.0,0.00012602,2]
[394910733,1764109853154,-500.0,0.00012602,2]
[394910734,1764109853164,-789.06,0.00012602,2]
[394910735,1764109853173,-500.0,0.00012602,2]
[394910736,1764109853183,-500.0,0.00012602,2]
[394910737,1764109853193,-915.3,0.00012602,2]
[394910738,1764109853203,-500.0,0.00012602,2]
[394910739,1764109853213,-1148.72,0.00012602,2]
[394910740,1764109853222,-2286.56,0.00012602,2]
[394910741,1764109853231,-500.0,0.00012602,2]
[394910742,1764109853241,-500.0,0.00012603,2]
[394910743,1764109853251,-201.93286099,0.0001274,2]
[394910744,1764109853261,-163.0,0.000128,3]
[394910745,1764109853271,-163.0,0.000128,3]
[394910746,1764109853281,-160.0,0.000128,3]
[394910747,1764109853290,-2000.0,0.00012836,2]
[394910748,1764109853299,-2000.0,0.00012836,2]
[394910749,1764109853309,-2000.0,0.00012836,2]
[394910750,1764109853319,-160.0,0.00012849,3]
[394910751,1764109853328,-500.0,0.00012876,2]
[394910752,1764109853338,-500.0,0.00012876,2]
[394910753,1764109853347,-500.0,0.00012876,2]
[394910754,1764109853356,-500.0,0.00012876,2]
[394910755,1764109853366,-500.0,0.00012876,2]
[394910756,1764109853375,-500.0,0.00012876,2]
[394910757,1764109853385,-778.3,0.00012876,2]
[394910758,1764109853394,-522.43,0.00012876,2]
[394910759,1764109853403,-500.0,0.00012876,2]
[394910760,1764109853413,-776.66,0.00012876,2]
[394910761,1764109853423,-831.55,0.00012876,2]
[394910762,1764109853432,-500.0,0.00012876,2]
[394910763,1764109853441,-500.0,0.00012876,2]
[394910764,1764109853451,-500.0,0.00012876,2]
[394910765,1764109853460,-951.23,0.00012876,2]
[394910766,1764109853469,-1391.03,0.00012876,2]
[394910767,1764109853479,-1609.86,0.00012876,2]
[394910768,1764109853488,-500.0,0.00012876,2]
[394910769,1764109853498,-500.0,0.00012876,2]
[394910770,1764109853507,-500.0,0.00012876,2]
[394910771,1764109853516,-500.0,0.00012876,2]
[394910772,1764109853525,-500.0,0.00012876,2]
[394910773,1764109853534,-500.0,0.00012876,2]
[394910774,1764109853544,-1009.15,0.00012876,2]
[394910775,1764109853554,-674.08,0.00012876,2]
[394910776,1764109853563,-500.0,0.00012876,2]
[394910777,1764109853573,-860.11,0.00012876,2]
[394910778,1764109853582,-500.0,0.00012876,2]
[394910779,1764109853591,-500.0,0.00012876,2]
[394910780,1764109853601,-594.58,0.00012876,2]
[394910781,1764109853611,-500.0,0.00012876,2]
[394910782,1764109853621,-1053.7,0.00012876,2]
[394910783,1764109853631,-500.0,0.00012876,2]
[394910784,1764109853640,-500.0,0.00012876,2]
[394910785,1764109853650,-500.0,0.00012876,2]
[394910786,1764109853660,-5238.0,0.00012876,2]
[394910787,1764109853670,-500.0,0.00012876,2]
[394910788,1764109853681,-500.0,0.00012876,2]
[394910789,1764109853690,-1090.9,0.00012876,2]
[394910790,1764109853703,-500.0,0.00012876,2]
[394910791,1764109853713,-1767.59,0.00012876,2]
[394910792,1764109853723,-500.0,0.00012876,2]
[394910793,1764109853734,-916.42,0.00012876,2]
[394910794,1764109853744,-500.0,0.00012876,2]
[394910795,1764109853754,-842.34,0.00012876,2]
[394910796,1764109853764,-500.0,0.00012876,2]
[394910797,1764109853774,-500.0,0.00012876,2]
[394910798,1764109853784,-500.0,0.00012876,2]
[394910799,1764109853794,-500.0,0.00012876,2]
[394910800,1764109853804,-500.0,0.00012876,2]
[394910801,1764109853813,-500.0,0.00012876,2]
[394910802,1764109853824,-743.55,0.00012876,2]
[394910803,1764109853834,-500.0,0.00012876,2]
[394910804,1764109853844,-500.0,0.00012876,2]
[394910805,1764109853855,-1018.73,0.00012876,2]
[394910806,1764109853869,-500.0,0.00012876,2]
[394910807,1764109853878,-500.0,0.00012876,2]
[394910808,1764109853888,-500.0,0.00012876,2]
[394910809,1764109853899,-500.0,0.00012876,2]
[394910810,1764109853908,-1030.87,0.00012876,2]
[394910811,1764109853917,-500.0,0.00012876,2]
[394910812,1764109853928,-1098.61,0.00012876,2]
[394910813,1764109853938,-500.0,0.00012876,2]
[394910814,1764109853950,-3749.21,0.00012876,2]
[394910815,1764109853960,-1649.84,0.00012876,2]
[394910816,1764109853969,-1177.92,0.00012876,2]
[394910817,1764109853979,-500.0,0.00012876,2]
[394910818,1764109853990,-796.05,0.00012876,2]
[394910819,1764109853999,-500.0,0.00012876,2]
[394910820,1764109854009,-1346.94,0.00012876,2]
[394910821,1764109854018,-1858.8,0.00012876,2]
[394910822,1764109854028,-1374.45,0.00012876,2]
[394910823,1764109854037,-500.0,0.00012876,2]
[394910824,1764109854047,-952.55,0.00012876,2]
[394910825,1764109854056,-1812.18,0.00012876,2]
[394910826,1764109854066,-568.71,0.00012876,2]
[394910827,1764109854075,-580.64,0.00012876,2]
[394910828,1764109854085,-1371.26,0.00012876,2]
[394910829,1764109854095,-500.0,0.00012876,2]
[394910830,1764109854104,-500.0,0.00012876,2]
[394910831,1764109854113,-500.0,0.00012876,2]
[394910832,1764109854122,-1012.25,0.00012876,2]
[394910833,1764109854132,-699.32,0.00012876,2]
[394910834,1764109854141,-500.0,0.00012876,2]
[394910835,1764109854151,-1155.07,0.00012876,2]
[394910836,1764109854160,-500.0,0.00012876,2]
[394910837,1764109854170,-2952.65,0.00012876,2]
[394910838,1764109854180,-929.42,0.00012876,2]
[394910839,1764109854190,-2211.59,0.00012876,2]
[394910840,1764109854202,-500.0,0.00012876,2]
[394910841,1764109854212,-3950.53,0.00012876,2]
[394910842,1764109854222,-500.0,0.00012876,2]
[394910843,1764109854231,-500.0,0.00012876,2]
[394910844,1764109854241,-1971.86,0.00012876,2]
[394910845,1764109854251,-500.0,0.00012876,2]
[394910846,1764109854260,-500.0,0.00012876,2]
[394910847,1764109854270,-500.0,0.00012876,2]
[394910848,1764109854279,-878.0,0.00012876,2]
[394910849,1764109854288,-500.0,0.00012876,2]
[394910850,1764109854298,-500.0,0.00012876,2]
[394910851,1764109854307,-500.0,0.00012876,2]
[394910852,1764109854317,-1042.61,0.00012876,2]
[394910853,1764109854327,-1382.12,0.00012876,2]
[394910854,1764109854336,-418.02895804,0.00012876,2]
[394910855,1764109854345,-1929.99,0.00012876,2]
[394910856,1764109854355,-637.07,0.00012876,2]
[394910857,1764109854364,-536.6,0.00012876,2]
[394910858,1764109854374,-500.0,0.00012876,2]
[394910859,1764109854383,-740.98,0.00012876,2]
[394910860,1764109854394,-2117.5,0.00012876,2]
[394910861,1764109854403,-500.0,0.00012876,2]
[394910862,1764109854413,-963.61,0.00012876,2]
[394910863,1764109854422,-681.26,0.00012876,2]
[394910864,1764109854432,-3600.8,0.00012876,2]
[394910865,1764109854441,-690.41,0.00012876,2]
[394910866,1764109854452,-500.0,0.00012876,2]
[394910867,1764109854462,-1778.0,0.00012876,2]
[394910868,1764109854471,-1865.67,0.00012876,2]
[394910869,1764109854481,-791.96,0.00012876,2]
[394910870,1764109854491,-8868.64,0.00012876,2]
[394910871,1764109854500,-500.0,0.00012876,2]
[394910872,1764109854509,-500.0,0.00012876,2]
[394910873,1764109854519,-832.68,0.00012876,2]
[394910874,1764109854528,-500.0,0.00012876,2]
[394910875,1764109854538,-500.0,0.00012876,2]
[394910876,1764109854551,-1913.75,0.00012876,2]
[394910877,1764109854560,-917.74,0.00012876,2]
[394910878,1764109854570,-1523.27,0.00012876,2]
[394910879,1764109854579,-1145.74,0.00012876,2]
[394910880,1764109854588,-500.0,0.00012876,2]
[394910881,1764109854599,-500.0,0.00012876,2]
[394910882,1764109854608,-1387.05,0.00012876,2]
[394910883,1764109854617,-500.0,0.00012876,2]
[394910884,1764109854627,-500.0,0.00012876,2]
[394910885,1764109854636,-789.06,0.00012876,2]
[394910886,1764109854645,-500.0,0.00012876,2]
[394910887,1764109854654,-500.0,0.00012876,2]
[394910888,1764109854664,-915.3,0.00012876,2]
[394910889,1764109854674,-500.0,0.00012876,2]
[394910890,1764109854683,-1148.72,0.00012876,2]
[394910891,1764109854692,-2286.56,0.00012876,2]
[394910892,1764109854701,-500.0,0.00012876,2]
[394910893,1764109854710,-500.0,0.00012877,2]
[394910894,1764109854720,-150.0,0.00013093,2]
[394910895,1764109854729,-559.75105119,0.0001315,2]
[394910896,1764109854738,-500.0,0.0001315,2]
[394910897,1764109854747,-500.0,0.0001315,2]
[394910898,1764109854756,-500.0,0.0001315,2]
[394910899,1764109854765,-500.0,0.0001315,2]
[394910900,1764109854775,-500.0,0.0001315,2]
[394910901,1764109854784,-778.3,0.0001315,2]
[394910902,1764109854793,-522.43,0.0001315,2]
[394910903,1764109854803,-500.0,0.0001315,2]
[394910904,1764109854811,-719.86535945,0.0001315,2]
[394910914,1764110153527,150.0,0.00012016,30]
[394910915,1764110153878,150.0,0.00013108,30]
[394910916,1764110154274,150.0,0.000142,30]
[394910917,1764110223994,150.0,0.00019031,30]
[394910920,1764110292956,150.0,0.00018579,30]
[394910921,1764110300612,229.126,0.0002,30]
[394910922,1764110332305,6923.0,0.000215,120]
[394910924,1764110436582,5000.0,0.00014,10]
[394910925,1764110458798,5000.0,0.00014,10]
[394910926,1764110481269,5000.0,0.00014,10]
[394910927,1764110665899,267.66560528,0.0002,30]
[394910970,1764111032334,-229.0,9.256e-05,2]
[394910972,1764111032343,-226.0,9.256e-05,2]
[394910974,1764111032353,-265.82144702,9.374e-05,2]
[394910976,1764111032362,-353.43546982,9.486e-05,2]
[394910978,1764111032371,-193.94511149,9.581e-05,2]
[394910981,1764111032380,-388.34567909,9.581e-05,2]
[394910984,1764111032389,-500.0,9.581e-05,2]
[394910987,1764111032398,-500.0,9.581e-05,2]
[394910990,1764111032407,-500.0,9.581e-05,2]
[394910993,1764111032416,-323.85532178,9.581e-05,2]
[394910996,1764111032425,-180.0,9.581e-05,2]
[394910999,1764111032434,-500.0,9.582e-05,2]
[394911002,1764111032443,-42073.28652569,9.582e-05,2]
[394911019,1764111032572,-1006.53,9.582e-05,2]
[394911022,1764111032583,-267.69086524,9.582e-05,2]
[394911024,1764111032595,-6652.49260907,9.582e-05,2]
[394911026,1764111032604,-363522.6784517,9.583e-05,2]
[394911028,1764111032614,-500.0,9.856e-05,2]
[394911030,1764111032623,-168.3888056,0.0001,2]
[394911032,1764111032632,-562.51914108,0.00010061,2]
[394911034,1764111032641,-500.0,0.0001013,2]
[394911036,1764111032651,-500.0,0.00010404,2]
[394911038,1764111032659,-174.61919141,0.00010548,2]
[394911040,1764111032669,-500.0,0.00010678,2]
[394911042,1764111032678,-506.01992005,0.00010904,2]
[394911044,1764111032687,-500.0,0.00010904,2]
[394911046,1764111032696,-500.0,0.00010904,2]
[394911048,1764111032705,-500.0,0.00010904,2]
[394911050,1764111032715,-345.68770136,0.00010904,2]
[394911052,1764111032724,-500.0,0.00010952,2]
[394911054,1764111032733,-500.0,0.00010958,2]
[394911056,1764111032742,-500.0,0.00010958,2]
[394911058,1764111032751,-500.0,0.00010958,2]
[394911060,1764111032760,-500.0,0.00010958,2]
[394911062,1764111032769,-500.0,0.00010958,2]
[394911064,1764111032778,-500.0,0.00010958,2]
[394911066,1764111032787,-500.0,0.00010958,2]
[394911068,1764111032796,-1339.09,0.00010958,2]
[394911070,1764111032805,-500.0,0.00010958,2]
[394911072,1764111032814,-678.46,0.00010958,2]
[394911074,1764111032824,-500.0,0.00010958,2]
[394911076,1764111032833,-500.0,0.00010958,2]
[394911078,1764111032842,-500.0,0.00010958,2]
[394911080,1764111032851,-500.0,0.00010958,2]
[394911081,1764111032860,-500.0,0.00010958,2]
[394911083,1764111032869,-500.0,0.00010958,2]
[394911090,1764111033063,-500.0,0.00010958,2]
[394911091,1764111033073,-500.0,0.00010958,2]
[394911092,1764111033083,-500.0,0.00010958,2]
[394911093,1764111033092,-500.0,0.00010958,2]
[394911094,1764111033101,-882.9,0.00010958,2]
[394911095,1764111033110,-500.0,0.00010958,2]
[394911096,1764111033119,-634.15,0.00010958,2]
[394911097,1764111033129,-500.0,0.00010958,2]
[394911098,1764111033138,-500.0,0.00010958,2]
[394911099,1764111033147,-500.0,0.00010958,2]
[394911100,1764111033156,-687.25,0.00010958,2]
[394911101,1764111033165,-500.0,0.00010958,2]
[394911102,1764111033174,-554.36,0.00010958,2]
[394911103,1764111033184,-500.0,0.00010958,2]
[394911104,1764111033193,-500.0,0.00010958,2]
[394911105,1764111033203,-672.76,0.00010958,2]
[394911106,1764111033214,-500.0,0.00010958,2]
[394911107,1764111033224,-927.36,0.00010958,2]
[394911108,1764111033238,-500.0,0.00010958,2]
[394911109,1764111033249,-1099.9,0.00010958,2]
[394911110,1764111033258,-500.0,0.00010958,2]
[394911111,1764111033267,-849.64,0.00010958,2]
[394911112,1764111033278,-897.96,0.00010958,2]
[394911113,1764111033288,-500.0,0.00010958,2]
[394911114,1764111033298,-702.47,0.00010958,2]
[394911115,1764111033307,-500.0,0.00010958,2]
[394911116,1764111033317,-500.0,0.00010958,2]
[394911117,1764111033327,-3623.68,0.00010958,2]
[394911118,1764111033336,-316.0570722,0.00010958,2]
[394911119,1764111033345,-500.0,0.00010958,2]
[394911120,1764111033354,-500.0,0.00010958,2]
[394911121,1764111033364,-3492.0,0.00010958,2]
[394911122,1764111033373,-500.0,0.00010958,2]
[394911123,1764111033382,-573.41,0.00010958,2]
[394911124,1764111033391,-500.0,0.00010958,2]
[394911125,1764111033400,-770.04,0.00010958,2]
[394911126,1764111033409,-500.0,0.00010958,2]
[394911127,1764111033418,-500.0,0.00010958,2]
[394911128,1764111033427,-500.0,0.00010958,2]
[394911129,1764111033436,-500.0,0.00010958,2]
[394911130,1764111033445,-500.0,0.00010958,2]
[394911131,1764111033454,-500.0,0.00010958,2]
[394911132,1764111033463,-500.0,0.00010958,2]
[394911133,1764111033473,-720.55,0.00010958,2]
[394911134,1764111033483,-500.0,0.00010958,2]
[394911135,1764111033492,-500.0,0.00010958,2]
[394911136,1764111033502,-500.0,0.00010958,2]
[394911137,1764111033511,-500.0,0.00010958,2]
[394911138,1764111033520,-610.95,0.00010958,2]
[394911139,1764111033529,-561.56,0.00010958,2]
[394911140,1764111033538,-500.0,0.00010958,2]
[394911141,1764111033547,-500.0,0.00010958,2]
[394911142,1764111033556,-500.0,0.00010958,2]
[394911143,1764111033567,-872.56,0.00010958,2]
[394911144,1764111033576,-500.0,0.00010958,2]
[394911145,1764111033585,-500.0,0.00010958,2]
[394911146,1764111033595,-500.0,0.00010958,2]
[394911147,1764111033604,-500.0,0.00010958,2]
[394911148,1764111033615,-500.0,0.00010958,2]
[394911149,1764111033624,-732.4,0.00010958,2]
[394911150,1764111033635,-500.0,0.00010958,2]
[394911151,1764111033645,-500.0,0.00010958,2]
[394911152,1764111033655,-2395.33,0.00010958,2]
[394911153,1764111033664,-785.28,0.00010958,2]
[394911154,1764111033672,-500.0,0.00010958,2]
[394911155,1764111033681,-500.0,0.00010958,2]
[394911156,1764111033690,-530.7,0.00010958,2]
[394911157,1764111033699,-500.0,0.00010958,2]
[394911158,1764111033709,-500.0,0.00010958,2]
[394911159,1764111033718,-500.0,0.00010958,2]
[394911160,1764111033727,-1239.2,0.00010958,2]
[394911161,1764111033737,-916.3,0.00010958,2]
[394911162,1764111033746,-500.0,0.00010958,2]
[394911163,1764111033756,-635.04,0.00010958,2]
[394911164,1764111033765,-1208.12,0.00010958,2]
[394911165,1764111033775,-500.0,0.00010958,2]
[394911166,1764111033785,-914.18,0.00010958,2]
[394911167,1764111033795,-500.0,0.00010958,2]
[394911168,1764111033804,-500.0,0.00010958,2]
[394911169,1764111033814,-877.29,0.00010958,2]
[394911170,1764111033823,-1968.44,0.00010958,2]
[394911171,1764111033833,-500.0,0.00010958,2]
[394911172,1764111033842,-226.5507778,0.00010958,2]
[394911173,1764111033852,-619.62,0.00010958,2]
[394911174,1764111033861,-500.0,0.00010958,2]
[394911175,1764111033870,-500.0,0.00010958,2]
[394911176,1764111033880,-604.83,0.00010958,2]
[394911177,1764111033890,-604.83,0.00010958,2]
[394911178,1764111033901,-604.83,0.00010958,2]
[394911179,1764111033911,-1411.67,0.00010958,2]
[394911180,1764111033920,-604.83,0.00010958,2]
[394911181,1764111033930,-604.83,0.00010958,2]
[394911182,1764111033939,-1474.4,0.00010958,2]
[394911183,1764111033949,-604.83,0.00010958,2]
[394911184,1764111033958,-604.83,0.00010958,2]
[394911185,1764111033968,-604.83,0.00010958,2]
[394911186,1764111033977,-604.83,0.00010958,2]
[394911187,1764111033986,-604.83,0.00010958,2]
[394911188,1764111033995,-604.83,0.00010958,2]
[394911189,1764111034004,-604.83,0.00010958,2]
[394911190,1764111034014,-604.83,0.00010958,2]
[394911191,1764111034023,-604.83,0.00010958,2]
[394911192,1764111034032,-604.83,0.00010958,2]
[394911193,1764111034041,-604.83,0.00010958,2]
[394911194,1764111034050,-604.83,0.00010958,2]
[394911195,1764111034059,-604.83,0.00010958,2]
[394911196,1764111034069,-604.83,0.00010958,2]
[394911197,1764111034078,-604.83,0.00010958,2]
[394911198,1764111034087,-604.83,0.00010958,2]
[394911199,1764111034096,-604.83,0.00010958,2]
[394911200,1764111034105,-604.83,0.00010958,2]
[394911201,1764111034114,-604.97606057,0.00010958,2]
[394911202,1764111034123,-2633.69,0.00010958,2]
[394911203,1764111034133,-1314.58,0.00010958,2]
[394911204,1764111034142,-500.0,0.00010958,2]
[394911205,1764111034151,-585.33,0.00010958,2]
[394911206,1764111034160,-500.0,0.00010958,2]
[394911207,1764111034169,-500.0,0.00010958,2]
[394911208,1764111034178,-500.0,0.00010958,2]
[394911209,1764111034187,-695.08,0.00010958,2]
[394911210,1764111034196,-500.0,0.00010958,2]
[394911211,1764111034206,-921.42,0.00010958,2]
[394911212,1764111034215,-520.61,0.00010958,2]
[394911213,1764111034225,-500.0,0.00010958,2]
[394911214,1764111034238,-1286.66,0.00010958,2]
[394911215,1764111034247,-1185.33,0.00010958,2]
[394911216,1764111034256,-500.0,0.00010958,2]
[394911217,1764111034264,-642.41,0.00010958,2]
[394911218,1764111034275,-527.97,0.00010958,2]
[394911219,1764111034284,-500.0,0.00010958,2]
[394911220,1764111034294,-500.0,0.00010958,2]
[394911221,1764111034303,-500.0,0.00010958,2]
[394911222,1764111034315,-2400.53,0.00010958,2]
[394911223,1764111034324,-500.0,0.00010958,2]
[394911224,1764111034333,-500.0,0.00010958,2]
[394911225,1764111034342,-1243.78,0.00010958,2]
[394911226,1764111034352,-5912.43,0.00010958,2]
[394911227,1764111034364,-500.0,0.00010958,2]
[394911228,1764111034373,-1275.83,0.00010958,2]
[394911229,1764111034382,-500.0,0.00010958,2]
[394911230,1764111034391,-555.12,0.00010958,2]
[394911231,1764111034400,-500.0,0.00010958,2]
[394911232,1764111034409,-500.0,0.00010958,2]
[394911233,1764111034418,-611.83,0.00010958,2]
[394911234,1764111034427,-500.0,0.00010958,2]
[394911235,1764111034436,-500.0,0.00010958,2]
[394911236,1764111034445,-526.04,0.00010958,2]
[394911237,1764111034455,-500.0,0.00010958,2]
[394911238,1764111034464,-1015.51,0.00010958,2]
[394911239,1764111034474,-500.0,0.00010958,2]
[394911240,1764111034483,-610.2,0.00010958,2]
[394911241,1764111034494,-924.7,0.00010958,2]
[394911242,1764111034504,-500.0,0.00010958,2]
[394911243,1764111034514,-500.0,0.00010958,2]
[394911244,1764111034525,-366.44780468,0.00010958,2]
[394911245,1764111034535,-765.82,0.00010958,2]
[394911246,1764111034544,-500.0,0.00010958,2]
[394911247,1764111034554,-500.0,0.00010958,2]
[394911248,1764111034563,-500.0,0.00010958,2]
[394911249,1764111034572,-166.67,0.00010958,2]
[394911250,1764111034582,-500.0,0.00010958,2]
[394911251,1764111034592,-647.77419281,0.00010958,2]
[394911252,1764111034604,-749.46,0.00010958,2]
[394911253,1764111034613,-1524.38,0.00010958,2]
[394911254,1764111034625,-500.0,0.00010958,2]
[394911255,1764111034636,-500.0,0.00010958,2]